Cogmind - Beta 15 @@@ ROGUE MODE // 2025.05.30 @ 12:51:48 Player: f3-rnm Result: Self-destructed Performance ------------- Evolutions (0) 0 Regions Visited (3) 600 Robots Destroyed (4) 20 Value Destroyed (107) 107 Prototype IDs (0) 0 Alien Tech Used (0) 0 Bonus (0) 0 TOTAL SCORE: 727 Bonus ------- None Cogmind --------- Core Integrity 177/250 Matter 207/300 Energy 100/100 System Corruption 0% Temperature Cool (0) Movement Treading (160) Location -9/Recycling Parts ------- > --- POWER (1) -------- (None) > --- PROPULSION (2) --- Light Treads Light Treads > --- UTILITY (2) ------ Small Storage Unit Large Storage Unit > --- WEAPON (2) ------- Assault Rifle Light Cannon > --- INVENTORY (15) --- SUBCON Basin (Full) Peak State ------------ > --- POWER ------------ Light Ion Engine > --- PROPULSION ------- Light Treads Light Treads > --- UTILITY ---------- Small Storage Unit Large Storage Unit > --- WEAPON ----------- Assault Rifle Light Cannon > --- INVENTORY -------- SUBCON Basin [Rating: 25] Favorites ----------- Power Light Ion Engine Engine Light Ion Engine Propulsion Light Treads Treads Light Treads Flight Unit VTOL Module Utility Small Storage Unit Storage Small Storage Unit Processor Targeting Computer Weapon Light Cannon Energy Gun EM Pulse Gun Ballistic Gun Assault Rifle Ballistic Cannon Light Cannon Launcher Subdweller Shrapnel Launcher Build | -11 -10 -10 -9 ------- Run | Yrd Mat Sub Rec Slots Evolved . | . . . . Power . | . . . . Propulsion . | . . . . Utility . | . . . . Weapon . | . . . . Parts Attached 14 | 6 5 3 . Power 1 | 1 . . . Engine 1 | 1 . . . Core . | . . . . Reactor . | . . . . Propulsion 5 | 2 3 . . Treads 2 | 2 . . . Leg . | . . . . Wheel . | . . . . Hover . | . . . . Flight 3 | . 3 . . Utility 3 | 1 1 1 . Device . | . . . . Storage 2 | 1 . 1 . Processor 1 | . 1 . . Hackware . | . . . . Protection . | . . . . Artifact . | . . . . Weapon 5 | 2 1 2 . Energy Gun 1 | . 1 . . Energy Cannon . | . . . . Ballistic Gun 2 | 2 . . . Ballistic Cannon 1 | . . 1 . Launcher 1 | . . 1 . Special Weapon . | . . . . Impact Weapon . | . . . . Slashing Weapon . | . . . . Piercing Weapon . | . . . . Special Melee Weapon . | . . . . Unidentified Prototypes . | . . . . Parts Lost 2 | . 1 . 1 Power 1 | . . . 1 Propulsion 1 | . 1 . . Utility . | . . . . Weapon . | . . . . Highest Loss Streak 1 | . 1 . 1 To Critical Strikes 1 | . . . 1 Average Backups 5 | 1 6 6 . Power . | . . . . Propulsion 1 | . 2 1 . Utility 1 | . 1 1 . Weapon 2 | . 2 2 . Tool/Special . | . . . . Unused Backups 6 | . 4 2 . Power 2 | . 1 1 . Propulsion 2 | . 2 . . Utility 1 | . . 1 . Weapon 1 | . 1 . . Tool/Special . | . . . . Average Slot Usage (%) 85 | . 70 88 100 Engine 13 | . 12 14 14 Treads 18 | . 12 19 28 Flight 9 | . 16 8 . Storage 15 | . 13 15 28 Processor 10 | . 3 12 . Ballistic Gun 7 | . 12 6 14 Ballistic Cannon 8 | . . 9 14 Peak Build Rating 25 | 6 7 25 25 Average Rating 8 | 4 6 8 24 On Entrance 9 | . 6 7 25 Naked Turns . | . . . . Heaviest Build 33 | 11 11 33 33 Greatest Support 40 | 40 40 40 40 Greatest Overweight (x) . | . . . . Average Overweight (x) . | . . . . Largest Inventory Capacity 15 | 8 8 15 15 Average Capacity 8 | 7 7 8 15 Most Carried 15 | 4 8 15 15 Average Carried 7 | 1 6 7 15 Final Capacity 15 | 8 8 15 15 Final Carried 15 | 4 7 15 15 Class Distribution -------------------- 68% | Mutant 31% | Sprinter Dominant Class ---------------- Sprinter | -10/Materials Mutant | -10/Subcaves Mutant | -9/Recycling Resources | -11 -10 -10 -9 ----------- Run | Yrd Mat Sub Rec Matter Collected 416 | 199 26 191 . Remotely . | . . . . Salvage Created 50 | . 26 24 . Parts 4 | . 4 . . Haulers Intercepted . | . . . . Recyclers Shooed . | . . . . Parts Field Recycled . | . . . . Retrieved Matter . | . . . . Parts Self-Destructed 6 | . . 6 . Prevented . | . . . . Kills | -11 -10 -10 -9 ------- Run | Yrd Mat Sub Rec Combat Hostiles Destroyed 1 | . . 1 . Cannons 1 | . . 1 . Classes Destroyed 3 | . 1 2 . Tunneler 1 | . 1 . . Turret 2 | . . 2 . Subdweller 1 | . . 1 . Best Kill Streak 2 | . 1 2 . Combat Bots Only 1 | . . 1 . Max Kills in Single Turn 1 | . 1 1 . Gunslinging . | . . . . Exploded . | . . . . Melee . | . . . . Uniques/NPCs Destroyed . | . . . . Combat | -11 -10 -10 -9 -------- Run | Yrd Mat Sub Rec Hostile Shots Fired 54 | . 8 40 6 Missed 23 | . 4 18 1 Hits 31 | . 4 22 5 Projectile 31 | . 4 22 5 AOE 2 | . . . 2 Critical Strikes 1 | . . . 1 Damage Taken 417 | . 49 227 141 Core 73 | . 22 51 . Absorbed by Shields . | . . . . Core Remaining (%) 100 | 100 . . . Volleys Fired 15 | . 2 13 . Largest 2 | . 1 2 . Hottest 50 | . 40 50 . Shots Fired 16 | . 2 14 . Gun 3 | . 2 1 . Cannon 9 | . . 9 . Launcher 4 | . . 4 . Special . | . . . . Kinetic 14 | . . 14 . Thermal . | . . . . Explosive . | . . . . Electromagnetic 2 | . 2 . . Robot Hit Streak 7 | . 2 7 . Robot Miss Streak 1 | . . 1 . Penetration Max . | . . . . Secondary Targets . | . . . . Shots Hit Robots 11 | . 2 9 . Core Hits 5 | . 1 4 . Critical Kills . | . . . . Critical Parts Destroyed . | . . . . Critical Strikes . | . . . . Melee Attacks . | . . . . Impact . | . . . . Slashing . | . . . . Piercing . | . . . . Sneak Attacks . | . . . . Combat Hostiles . | . . . . Follow-up Attacks . | . . . . Damage Inflicted 410 | . 30 380 . Guns 30 | . 30 . . Cannons 118 | . . 118 . Explosions 262 | . . 262 . Melee . | . . . . Ramming . | . . . . Kinetic 380 | . . 380 . Thermal . | . . . . Explosive . | . . . . Electromagnetic 30 | . 30 . . Impact . | . . . . Slashing . | . . . . Piercing . | . . . . Highest Corruption . | . . . . Average Corruption . | . . . . Corruption Purged . | . . . . Corruption Blocked . | . . . . Overload Shots . | . . . . Overflow Damage 31 | . . 31 . Projectiles 17 | . . 17 . Explosions 14 | . . 14 . Melee . | . . . . Knockbacks . | . . . . Impact . | . . . . Kinetic . | . . . . Secondary . | . . . . Self-Inflicted Damage 59 | . . 59 . Shots 1 | . . 1 . Rammed . | . . . . Targets Rammed . | . . . . Kicked . | . . . . Crushed . | . . . . Highest Temperature 8 | . 8 . . Average Temperature 5 | . 5 . . Received Heat Transfer 135 | . 27 108 . Siege Activations . | . . . . Martial Activations . | . . . . Shielding Activations . | . . . . Robots Disrupted . | . . . . Combat Hostiles . | . . . . Robots Corrupted . | . . . . Combat Hostiles . | . . . . Parts Fried . | . . . . Impact Corruptions . | . . . . Robots Melted . | . . . . Combat Hostiles . | . . . . Parts Melted . | . . . . Heat Transferred . | . . . . Parts Sabotaged . | . . . . Parts Stolen . | . . . . Parts Stripped . | . . . . Power Chain Reactions . | . . . . Alert | -11 -10 -10 -9 ------- Run | Yrd Mat Sub Rec Maximum Alert Level . | . . . . Low Security (%) 100 | 100 100 . 100 Level 1 . | . . . . Level 2 . | . . . . Level 3 . | . . . . Level 4 . | . . . . Level 5 . | . . . . High Security . | . . . . Max Security . | . . . . Peak Influence 50 | . 50 . . Initial . | . . . . Average 6 | . 9 . . Influence Increases 180 | . 65 115 . Destroy 0b10 Robot/C 40 | . . 40 . Destroy 0b10 Robot/NC 5 | . 5 . . Lose Combat Pursuer 135 | . 60 75 . Influence Decreases 180 | . 45 135 . Entered New Map 10 | . . 10 . Time Decay 160 | . 35 125 . Lost Part 10 | . 10 . . Squads Dispatched . | . . . . Investigation . | . . . . Extermination . | . . . . Reinforcement . | . . . . Assault . | . . . . Garrison . | . . . . Intercept . | . . . . Searches Triggered . | . . . . Construction Impeded . | . . . . Haulers Reinforced . | . . . . Active Scanning Responses . | . . . . Cargo Convoy Interrupts . | . . . . Stealth | -11 -10 -10 -9 --------- Run | Yrd Mat Sub Rec Distress Signals . | . . . . Communications Jammed . | . . . . Distress Signals . | . . . . Times Spotted 20 | . 8 10 2 Peak Tracking Total 8 | . 6 8 2 Tactical Retreats 4 | . 1 3 . Traps | -11 -10 -10 -9 ------- Run | Yrd Mat Sub Rec Traps Triggered . | . . . . Indirectly . | . . . . Trap Hack Attempts . | . . . . Triggered . | . . . . Disarmed . | . . . . Reprogrammed . | . . . . Reused . | . . . . Traps Extracted . | . . . . Installed . | . . . . Triggered . | . . . . Machines | -11 -10 -10 -9 ---------- Run | Yrd Mat Sub Rec Machines Disabled 3 | . . 3 . Max in Single Turn 3 | . . 3 . Machines Repaired . | . . . . Machines Dismantled . | . . . . Machines Sabotaged . | . . . . Overloaded Fab Kills . | . . . . Hacking | -11 -10 -10 -9 --------- Run | Yrd Mat Sub Rec Machines Accessed 3 | . 1 2 . Terminals . | . . . . Fabricators . | . . . . Repair Stations . | . . . . Recycling Units 1 | . 1 . . Scanalyzers . | . . . . Garrison Access . | . . . . Total Hacks 4 | . 1 3 . Successful 4 | . 1 3 . Failed . | . . . . Catastrophic . | . . . . Database Lockouts . | . . . . Manual . | . . . . Terminals . | . . . . Fabricators . | . . . . Repair Stations . | . . . . Recycling Units 1 | . 1 . . Scanalyzers . | . . . . Garrison Access . | . . . . Terminal Hacks 3 | . . 3 . Record 1 | . . 1 . Open Door 1 | . . 1 . Release Object 1 | . . 1 . Fabricator Hacks . | . . . . Repair Station Hacks . | . . . . Recycling Unit Hacks 1 | . 1 . . Retrieve Components 1 | . 1 . . Scanalyzer . | . . . . Garrison Access Hacks . | . . . . Unauthorized Hacks . | . . . . Terminals . | . . . . Fabricators . | . . . . Repair Stations . | . . . . Recycling Units . | . . . . Scanalyzers . | . . . . Garrison Access . | . . . . Data Cores Recovered . | . . . . Used . | . . . . Hacking Detections . | . . . . Full Trace Events . | . . . . Feedback Events . | . . . . Feedback Blocked . | . . . . Robot Schematics Acquired . | . . . . Robots Built . | . . . . Authchips . | . . . . Time . | . . . . Total Robot Build Rating . | . . . . Part Schematics Acquired . | . . . . Parts Built . | . . . . Authchips . | . . . . Time . | . . . . Total Part Build Rating . | . . . . Parts Repaired . | . . . . Time . | . . . . Parts Recycled . | . . . . Recycled Matter . | . . . . Retrieved Matter . | . . . . Retrieved Components 3 | . 3 . . Parts Scanalyzed . | . . . . Part Schematics Acquired . | . . . . Parts Damaged . | . . . . Bothacking | -11 -10 -10 -9 ------------ Run | Yrd Mat Sub Rec Used RIF Installer . | . . . . Robots Hacked . | . . . . Non-combat . | . . . . Combat . | . . . . Robot Hacks Applied . | . . . . Relay Couplers Released . | . . . . Fabnet Peak Effective % . | . . . . Robots Rewired . | . . . . Allies Hacked . | . . . . Hacks Repelled . | . . . . Allies | -11 -10 -10 -9 -------- Run | Yrd Mat Sub Rec Total Allies . | . . . . Largest Group . | . . . . Highest-Rated Group . | . . . . Highest-Rated Ally . | . . . . Total Orders . | . . . . Ally Attacks . | . . . . Total Damage . | . . . . Kills . | . . . . Allies Corrupted . | . . . . Allies Melted . | . . . . Intel | -11 -10 -10 -9 ------- Run | Yrd Mat Sub Rec Active Infowar (turns) . | . . . . Robot Analysis Total . | . . . . Derelict Logs Recovered . | . . . . Drone Launches . | . . . . Drone Recoveries . | . . . . Exploration | -11 -10 -10 -9 ------------- Run | Yrd Mat Sub Rec Turns Passed 1247 | 85 203 946 13 Spaces Moved 1011 | 48 218 737 8 Core 3 | 3 . . . Treads 498 | 45 47 398 8 Legs . | . . . . Wheels . | . . . . Hover . | . . . . Flight 510 | . 171 339 . Fastest Speed 32 | 50 32 32 160 Average Speed 95 | 153 59 101 160 Slowest Speed 160 | 160 160 160 160 Overloaded Moves . | . . . . Propulsion Burnouts . | . . . . Robots Hopped 4 | . 4 . . Potential Cave-ins . | . . . . Cave-ins Triggered . | . . . . Exploration Rate (%) 17 | 4 41 21 5 Regions Visited 3 Branch Regions 2 Pre-discovered Areas . | . . . . Known Exits Taken . | . . . . Unknown Exits Taken 3 | 1 1 1 . Scrap Searched 1 | . . 1 . Spaces Dug . | . . . . Terrain Destroyed 44 | . . 44 . Melee . | . . . . Projectile . | . . . . AOE 44 | . . 44 . Terrain Rammed . | . . . . Walls Destroyed . | . . . . Machines Disabled . | . . . . Actions | -11 -10 -10 -9 --------- Run | Yrd Mat Sub Rec Total 1276 | 57 286 925 8 Wait 202 | . 44 158 . Move 1000 | 47 209 736 8 Hop 4 | . 4 . . Pick Up 18 | 4 11 3 . Fast Attach 12 | 6 5 1 . Attach 4 | . 2 2 . Detach 1 | . 1 . . Swap 4 | . . 4 . Drop 16 | . 8 8 . Fire 15 | . 2 13 . Melee . | . . . . Ram . | . . . . Kick . | . . . . Crush . | . . . . Escape Stasis . | . . . . Rewire . | . . . . Trap . | . . . . Miscellaneous . | . . . . Route ------- -11/Scrapyard -10/Materials (discovered 3 exits: [*Mat] / [*Min] / *Sub) -10/Subcaves -9/Recycling History --------- Turn | Location | Event 4 | -11/Scrapyard | Discovered new exit (range 15) 86 | -11/Scrapyard | Entered Materials 165 | -10/Materials | Released all parts (4) 216 | -10/Materials | Discovered new exit (range 7) 226 | -10/Materials | Discovered new exit (range 16) 287 | -10/Materials | Discovered new exit (range 8) 289 | -10/Materials | Entered Subcaves 290 | -10/Subcaves | Ambushed by Subdwellers from Twisted Machinery 290 | -10/Subcaves | Approached by a straggling Scientist 474 | -10/Subcaves | Build established: Sprinter 755 | -10/Subcaves | Discovered new exit (range 11) 862 | -10/Subcaves | Build established: Mutant 1157 | -10/Subcaves | Found SUBCON Basin 1235 | -10/Subcaves | Entered Recycling 1248 | -9/Recycling | Self-destructed Last Messages --------------- 01147_ Dropped Seismic Detector. 01147_ Dropped EM Pulse Gun. 01148_ Dropped Sub. Shrapnel Launcher. 01152_ Discarded Targeting Computer. 01152_ Acquired Lrg. Storage Unit. 01157_ Acquired SUBCON Basin. 01162_ Subatomizers dissect the Sub. Power Source. LOCATION=UNKNOWN GOAL=ESCAPE 01240_ H-55 Commando springs to life. 01240_ Penetrated by Slug. 01240_ Critical hit (Destroy). 01240_ Lgt. Ion Engine destroyed. 01242_ D-53 Grenadier springs to life. 01245_ G-34 Mercenary destroyed. 01245_ U-05 Engineer destroyed. 01245_ P-60 Hacker destroyed. 01245_ G-34 Mercenary destroyed. 01247_ Y-45 Defender destroyed. 01247_ P-60 Hacker destroyed. Map ----- +----------------------------------------------------+ | | | | | | | | | ?????????????????????????????????????????????????? | | ?????????????????????????????????????????????????? | | ?????????????????????????????????????????????????? | | ?????????????????????????????????????????????????? | | ?????????????????????????????????????????????????? | | ?????????????????????????????????????????????????? | | ?????????????????????????????????????????????????? | | ?????????????????????????????????????????????????? | | ?????????????????????????????????????????????????? | | ?????????????????????????????????????????????????? | | ?????????????????????????????????????????????????? | | ?????????????????????????????????????????????????? | | ?????????????????????????????????????????????????? | | ?????????????????????????????????????????????????? | | ?????????????????????????????????????????????????? | | ???????????????######?###?##?????????????????????? | | ???????????##### ## # #####?????????????????? | | ??????????? #?????????????????? | | ???????????????# #?????????????????? | | ???????????????# #?????????????????? | | ???????????????# # ####?????????????????? | | ???????????????## ???# @%[dg#??????????????????? | | ?????????????????????# %Yg#??????????????????? | | ?????????????????????# %*p#??????????????????? | | ?????????????????????# % =%[#??????????????????? | | ?????????????????????###*b #??????????????????? | | ???????????????????????# k #??????????????????? | | ???????????????????????# h #??????????????????? | | ???????????????????????# sd]!#??????????????????? | | ???????????????????????# / #??????????????????? | | ???????????????????????# !#??????????????????? | | ???????????????????????# k ll #??????????????????? | | ???????????????????????# %[= #??????????????????? | | ???????????????????????+ *g#??????????????????? | | ????????????????????????#######??????????????????? | | ?????????????????????????????????????????????????? | | ?????????????????????????????????????????????????? | | ?????????????????????????????????????????????????? | | ?????????????????????????????????????????????????? | | ?????????????????????????????????????????????????? | | ?????????????????????????????????????????????????? | | ?????????????????????????????????????????????????? | | ?????????????????????????????????????????????????? | | ?????????????????????????????????????????????????? | | ?????????????????????????????????????????????????? | | ?????????????????????????????????????????????????? | +----------------------------------------------------+ Best States ------------- Heat Dissipation 25 Energy Generation 10 Energy Capacity 125 Matter Stores 275 Matter Capacity 300 Sight Range 16 Terrain Scan Density 10 Evasion (%) 63 Targeting Accuracy 5 Recoil Reduction 2 Item Schematics ----------------- None Robot Schematics ------------------ None Fabricated ------------ Nothing Repaired ---------- Nothing Alien Tech Used ----------------- None Achievements -------------- None Challenges ------------ None Game ------ Seed ExplosiveEtherialShovel Manual? 1 Play Time 00:06:51 Cumulative 316.4 hours Start 2025.05.30 @ 12:45:04 End 2025.05.30 @ 12:51:48 Sessions 1 Manual Loads 0 Difficulty Rogue Special Mode None Game No. 303 Rogue 267 Adventurer 36 Explorer 0 Win Type - Total 11 Types 4/0/7/0/0/0/0/0/0/0 Lore% 69 Gallery% 81 Achievement% 74 Wizard Run 0 Options --------- Layout 0 ASCII 0 Keyboard 0 Movement Mouse Keybinds 0 Fullscreen 1 Font 18/SmallcapsGlow Map View 76x50 Zoom Use 0% Tactical HUD 1 Map Filters NONE Filters NONE Steam 1 RUN: 2de8df67-f42f-4622-b6c0-009b8da5c713